fUSD/lending_fUSD_20240116
["ID","MTS","AMOUNT","RATE_DAILY","PERIOD"]
[311781647,1705387845614,-500.0,0.00022146,2]
[311781648,1705387845623,-500.0,0.00022146,2]
[311781649,1705387845633,-500.0,0.00022146,2]
[311781650,1705387845643,-450.63744595,0.00022146,2]
[311781651,1705387845653,-500.0,0.00022146,2]
[311781652,1705387845663,-500.0,0.00022146,2]
[311781653,1705387845673,-500.0,0.00022146,2]
[311781654,1705387845683,-500.0,0.00022146,2]
[311781655,1705387845693,-500.0,0.00022146,2]
[311781656,1705387845702,-500.0,0.00022146,2]
[311781657,1705387845712,-500.0,0.00022146,2]
[311781658,1705387845721,-568.16,0.00022146,2]
[311781659,1705387845731,-500.0,0.00022146,2]
[311781660,1705387845742,-500.0,0.00022146,2]
[311781661,1705387845752,-509.95,0.00022146,2]
[311781662,1705387845761,-500.0,0.00022146,2]
[311781663,1705387845771,-500.0,0.00022146,2]
[311781665,1705387845780,-653.65,0.00022146,2]
[311781667,1705387845790,-500.0,0.00022146,2]
[311781668,1705387845799,-500.0,0.00022146,2]
[311781669,1705387845808,-500.0,0.00022146,2]
[311781670,1705387845818,-500.0,0.00022146,2]
[311781671,1705387845828,-500.0,0.00022146,2]
[311781672,1705387845838,-500.0,0.00022146,2]
[311781673,1705387845847,-623.72,0.00022146,2]
[311781674,1705387845857,-500.0,0.00022146,2]
[311781675,1705387845867,-500.0,0.00022146,2]
[311781676,1705387845876,-509.73,0.00022146,2]
[311781677,1705387845886,-756.12,0.00022146,2]
[311781678,1705387845896,-500.0,0.00022146,2]
[311781679,1705387845906,-500.0,0.00022146,2]
[311781680,1705387845916,-500.0,0.00022146,2]
[311781681,1705387845926,-500.0,0.00022146,2]
[311781682,1705387845935,-500.0,0.00022146,2]
[311781683,1705387845944,-500.0,0.00022146,2]
[311781684,1705387845953,-500.0,0.00022146,2]
[311781686,1705387845963,-500.0,0.00022146,2]
[311781688,1705387845973,-500.0,0.00022146,2]
[311781690,1705387845982,-500.0,0.00022146,2]
[311781692,1705387845991,-500.0,0.00022146,2]
[311781694,1705387846001,-500.0,0.00022146,2]
[311781695,1705387846010,-538.79,0.00022146,2]
[311781696,1705387846019,-529.61681786,0.00022146,2]
[311781697,1705387846028,-500.0,0.00022146,2]
[311781698,1705387846038,-500.0,0.00022146,2]
[311781699,1705387846047,-500.0,0.00022146,2]
[311781700,1705387846057,-914.45,0.00022146,2]
[311781701,1705387846068,-500.0,0.00022146,2]
[311781702,1705387846078,-714.48,0.00022146,2]
[311781703,1705387846092,-541.05,0.00022146,2]
[311781704,1705387846101,-500.0,0.00022146,2]
[311781705,1705387846111,-500.0,0.00022146,2]
[311781706,1705387846120,-500.0,0.00022146,2]
[311781707,1705387846129,-500.0,0.00022146,2]
[311781708,1705387846139,-500.0,0.00022146,2]
[311781709,1705387846150,-500.0,0.00022146,2]
[311781710,1705387846160,-568.71,0.00022146,2]
[311781711,1705387846169,-500.0,0.00022146,2]
[311781712,1705387846181,-500.0,0.00022146,2]
[311781713,1705387846190,-504.44404475,0.00022146,2]
[311781714,1705387846199,-524.16657,0.00022146,2]
[311781715,1705387846209,-500.0,0.00022146,2]
[311781716,1705387846219,-500.0,0.00022146,2]
[311781717,1705387846230,-500.0,0.00022146,2]
[311781718,1705387846240,-500.0,0.00022146,2]
[311781719,1705387846250,-500.0,0.00022146,2]
[311781720,1705387846261,-500.0,0.00022146,2]
[311781721,1705387846270,-500.0,0.00022146,2]
[311781722,1705387846279,-512.42908473,0.00022146,2]
[311781723,1705387846289,-500.0,0.00022146,2]
[311781724,1705387846298,-500.0,0.00022146,2]
[311781725,1705387846307,-500.0,0.00022146,2]
[311781726,1705387846317,-413.43927779,0.00022146,2]
[311781727,1705387846326,-573.56123851,0.00022146,2]
[311781728,1705387846336,-500.0,0.00022146,2]
[311781729,1705387846345,-902.86,0.00022146,2]
[311781730,1705387846354,-436.7997662,0.00022146,2]
[311781731,1705387846364,-446.12992568,0.00022146,2]
[311781732,1705387846374,-500.0,0.00022146,2]
[311781733,1705387846383,-500.0,0.00022146,2]
[311781734,1705387846392,-573.7,0.00022146,2]
[311781735,1705387846402,-500.0,0.00022146,2]
[311781736,1705387846411,-114401.55939,0.00022154,2]
[311781737,1705387846420,-21885.6048112,0.00022169,2]
[311781738,1705387846430,-156838.3099999,0.00022169,2]
[311781739,1705387846439,-3268.8482112,0.00022169,2]
[311781740,1705387846448,-6645.331463,0.00022184,2]
[311781741,1705387846457,-3361.0965121,0.00022184,2]
[311781742,1705387846466,-500.0,0.00022199,2]
[311781743,1705387846475,-129316.83117252,0.000222,2]
[311781744,1705387846485,-11384.22451298,0.000222,2]
[311781745,1705387846494,-170.00428549,0.000222,2]
[311781746,1705387846503,-178.39817792,0.000222,2]
[311781747,1705387846513,-175.955578,0.00022201,5]
[311781748,1705387846522,-157.11,0.00022205,2]
[311781749,1705387846531,-159.09,0.00022218,2]
[311781750,1705387846541,-956.48099994,0.00022243,2]
[311781751,1705387846550,-430.78,0.00022245,2]
[311781752,1705387846560,-11384.22451292,0.00022264,2]
[311781753,1705387846569,-497.79925133,0.00022264,2]
[311781754,1705387846578,-152.27,0.0002227,2]
[311781755,1705387846588,-207.0,0.00022287,2]
[311781756,1705387846597,-205.0,0.00022287,2]
[311781757,1705387846606,-207.0,0.00022287,2]
[311781758,1705387846616,-500.0,0.00022299,2]
[311781759,1705387846625,-500.0,0.00022299,2]
[311781760,1705387846634,-500.0,0.00022299,2]
[311781761,1705387846645,-500.0,0.00022299,2]
[311781762,1705387846655,-500.0,0.00022299,2]
[311781763,1705387846665,-500.0,0.00022299,2]
[311781764,1705387846674,-500.0,0.00022299,2]
[311781765,1705387846684,-505534.28686793,0.000223,2]
[311781766,1705387846693,-928.65,0.00022301,2]
[311781767,1705387846702,-699.0,0.00022312,7]
[311781768,1705387846712,-444.0,0.00022312,7]
[311781769,1705387846722,-534.0,0.00022312,7]
[311781770,1705387846731,-11384.22451292,0.00022327,2]
[311781771,1705387846740,-679.67866707,0.0002236,2]
[311781772,1705387846749,-500.0,0.00022373,2]
[311781773,1705387846758,-500.0,0.00022373,2]
[311781774,1705387846768,-537.08923523,0.00022373,2]
[311781775,1705387846777,-500.0,0.00022373,2]
[311781776,1705387846786,-581.14,0.00022373,2]
[311781777,1705387846795,-500.0,0.00022373,2]
[311781778,1705387846805,-500.0,0.00022373,2]
[311781779,1705387846814,-500.0,0.00022373,2]
[311781780,1705387846824,-500.0,0.00022373,2]
[311781781,1705387846833,-500.0,0.00022373,2]
[311781782,1705387846842,-500.0,0.00022373,2]
[311781783,1705387846852,-500.0,0.00022373,2]
[311781784,1705387846861,-500.0,0.00022373,2]
[311781785,1705387846871,-621.75,0.00022373,2]
[311781786,1705387846881,-500.0,0.00022373,2]
[311781787,1705387846890,-500.0,0.00022373,2]
[311781788,1705387846900,-500.0,0.00022373,2]
[311781789,1705387846910,-500.0,0.00022373,2]
[311781790,1705387846919,-886.08,0.00022373,2]
[311781791,1705387846929,-500.0,0.00022373,2]
[311781792,1705387846938,-500.0,0.00022373,2]
[311781793,1705387846948,-500.0,0.00022373,2]
[311781794,1705387846957,-500.0,0.00022373,2]
[311781795,1705387846967,-500.0,0.00022373,2]
[311781796,1705387846976,-3105.05,0.00022373,2]
[311781797,1705387846985,-500.0,0.00022373,2]
[311781798,1705387846994,-500.0,0.00022373,2]
[311781799,1705387847003,-1233.04,0.00022373,2]
[311781800,1705387847013,-500.0,0.00022373,2]
[311781801,1705387847023,-769.57,0.00022373,2]
[311781802,1705387847032,-500.0,0.00022373,2]
[311781803,1705387847041,-906.42,0.00022373,2]
[311781804,1705387847050,-500.0,0.00022373,2]
[311781805,1705387847059,-512.37,0.00022373,2]
[311781806,1705387847069,-500.0,0.00022373,2]
[311781807,1705387847079,-176.81,0.00022373,2]
[311781808,1705387847091,-3080.29,0.00022373,2]
[311781809,1705387847100,-539.81,0.00022373,2]
[311781810,1705387847110,-500.0,0.00022373,2]
[311781811,1705387847119,-453.5459714,0.00022373,2]
[311781812,1705387847128,-18071.95,0.00022373,2]
[311781813,1705387847138,-500.0,0.00022373,2]
[311781814,1705387847149,-1265.29,0.00022373,2]
[311781815,1705387847158,-500.0,0.00022373,2]
[311781816,1705387847167,-500.0,0.00022373,2]
[311781817,1705387847176,-696.31,0.00022373,2]
[311781818,1705387847185,-500.0,0.00022373,2]
[311781819,1705387847194,-500.0,0.00022373,2]
[311781820,1705387847204,-576.67075282,0.00022373,2]
[311781821,1705387847213,-1341.07,0.00022373,2]
[311781822,1705387847223,-500.0,0.00022373,2]
[311781823,1705387847232,-500.0,0.00022373,2]
[311781824,1705387847241,-2646.14,0.00022373,2]
[311781825,1705387847250,-861.7,0.00022373,2]
[311781826,1705387847260,-500.0,0.00022373,2]
[311781827,1705387847269,-500.0,0.00022373,2]
[311781828,1705387847278,-1190.13,0.00022373,2]
[311781829,1705387847287,-500.0,0.00022373,2]
[311781830,1705387847297,-1099.92,0.00022373,2]
[311781831,1705387847375,-500.0,0.00022373,2]
[311781832,1705387847384,-817.16,0.00022373,2]
[311781833,1705387847394,-504.73,0.00022373,2]
[311781834,1705387847403,-500.0,0.00022373,2]
[311781835,1705387847411,-749.0,0.00022373,2]
[311781836,1705387847421,-500.0,0.00022373,2]
[311781837,1705387847431,-863.21,0.00022373,2]
[311781838,1705387847441,-500.0,0.00022373,2]
[311781839,1705387847451,-500.0,0.00022373,2]
[311781840,1705387847463,-500.0,0.00022373,2]
[311781841,1705387847472,-500.0,0.00022373,2]
[311781842,1705387847482,-596.54,0.00022373,2]
[311781843,1705387847491,-500.0,0.00022373,2]
[311781844,1705387847500,-500.0,0.00022373,2]
[311781845,1705387847510,-9954.01,0.00022373,2]
[311781846,1705387847518,-500.0,0.00022373,2]
[311781847,1705387847528,-2116.85,0.00022373,2]
[311781848,1705387847540,-1333.82,0.00022373,2]
[311781849,1705387847550,-587.59,0.00022373,2]
[311781850,1705387847560,-500.0,0.00022373,2]
[311781851,1705387847569,-751.99,0.00022373,2]
[311781852,1705387847578,-500.0,0.00022373,2]
[311781853,1705387847587,-500.0,0.00022373,2]
[311781854,1705387847596,-500.0,0.00022373,2]
[311781855,1705387847605,-1007.96,0.00022373,2]
[311781856,1705387847619,-500.0,0.00022373,2]
[311781857,1705387847628,-943.73,0.00022373,2]
[311781858,1705387847637,-500.0,0.00022373,2]
[311781859,1705387847646,-500.0,0.00022373,2]
[311781860,1705387847655,-500.0,0.00022373,2]
[311781861,1705387847664,-1009.35,0.00022373,2]
[311781862,1705387847674,-549.57,0.00022373,2]
[311781863,1705387847683,-868.38,0.00022373,2]
[311781864,1705387847692,-500.0,0.00022373,2]
[311781865,1705387847701,-500.0,0.00022373,2]
[311781866,1705387847710,-972.97,0.00022373,2]
[311781867,1705387847720,-500.0,0.00022373,2]
[311781868,1705387847729,-500.0,0.00022373,2]
[311781869,1705387847738,-3142.85,0.00022373,2]
[311781870,1705387847748,-500.0,0.00022373,2]
[311781871,1705387847758,-1140.48,0.00022373,2]
[311781872,1705387847768,-1260.95,0.00022373,2]
[311781873,1705387847777,-500.0,0.00022373,2]
[311781874,1705387847787,-505.75,0.00022373,2]
[311781875,1705387847797,-746.65,0.00022373,2]
[311781876,1705387847807,-500.0,0.00022373,2]
[311781877,1705387847816,-611.33,0.00022373,2]
[311781878,1705387847825,-500.0,0.00022373,2]
[311781879,1705387847835,-500.0,0.00022373,2]
[311781880,1705387847845,-1420.52,0.00022373,2]
[311781881,1705387847855,-557.65,0.00022373,2]
[311781882,1705387847865,-500.0,0.00022373,2]
[311781883,1705387847874,-526.7,0.00022373,2]
[311781884,1705387847883,-500.0,0.00022373,2]
[311781885,1705387847892,-153.54648296,0.00022373,2]
[311781886,1705387847901,-2120.03,0.00022373,2]
[311781887,1705387847910,-529.34,0.00022373,2]
[311781888,1705387847919,-1713.48,0.00022373,2]
[311781889,1705387847929,-1155.36,0.00022373,2]
[311781890,1705387847938,-500.0,0.00022373,2]
[311781891,1705387847948,-175.95557798,0.00022376,6]
[311781892,1705387847957,-11384.22451292,0.00022391,2]
[311781893,1705387847966,-497.79925133,0.00022391,2]
[311781894,1705387847975,-157.11,0.00022398,2]
[311781895,1705387847985,-418.24,0.000224,2]
[311781896,1705387847995,-150.0,0.000224,2]
[311781897,1705387848004,-150.0,0.000224,2]
[311781898,1705387848015,-408.4,0.000224,2]
[311781899,1705387848024,-1744.0,0.000224,2]
[311781900,1705387848035,-500.0,0.00022417,2]
[311781901,1705387848044,-500.0,0.00022417,2]
[311781902,1705387848053,-500.0,0.00022417,2]
[311781903,1705387848063,-632.04,0.00022417,2]
[311781904,1705387848072,-500.0,0.00022417,2]
[311781905,1705387848082,-543.87,0.00022417,2]
[311781906,1705387848093,-500.0,0.00022417,2]
[311781907,1705387848102,-500.0,0.00022417,2]
[311781908,1705387848113,-568.56,0.00022417,2]
[311781909,1705387848122,-500.0,0.00022417,2]
[311781910,1705387848132,-500.0,0.00022417,2]
[311781911,1705387848142,-500.0,0.00022417,2]
[311781912,1705387848152,-500.0,0.00022417,2]
[311781913,1705387848163,-556.54,0.00022417,2]
[311781914,1705387848172,-513.22,0.00022417,2]
[311781915,1705387848181,-500.0,0.00022417,2]
[311781916,1705387848190,-500.0,0.00022417,2]
[311781917,1705387848199,-500.0,0.00022417,2]
[311781918,1705387848208,-500.0,0.00022417,2]
[311781919,1705387848217,-500.0,0.00022417,2]
[311781920,1705387848226,-500.0,0.00022417,2]
[311781921,1705387848235,-500.0,0.00022417,2]
[311781922,1705387848245,-500.0,0.00022417,2]
[311781923,1705387848254,-500.0,0.00022417,2]
[311781924,1705387848265,-511.4,0.00022417,2]
[311781925,1705387848274,-1060.04,0.00022417,2]
[311781926,1705387848283,-500.0,0.00022417,2]
[311781927,1705387848292,-547.11,0.00022417,2]
[311781928,1705387848301,-500.0,0.00022417,2]
[311781929,1705387848310,-500.0,0.00022417,2]
[311781930,1705387848319,-500.0,0.00022417,2]
[311781931,1705387848328,-505.97,0.00022417,2]
[311781932,1705387848337,-500.0,0.00022417,2]
[311781933,1705387848347,-474.13575304,0.00022417,2]
[311781934,1705387848356,-538.68,0.00022417,2]
[311781935,1705387848366,-500.0,0.00022417,2]
[311781936,1705387848375,-500.0,0.00022417,2]
[311781937,1705387848384,-583.97,0.00022417,2]
[311781938,1705387848394,-500.0,0.00022417,2]
[311781939,1705387848404,-564.04,0.00022417,2]
[311781940,1705387848413,-500.0,0.00022417,2]
[311781941,1705387848423,-1021.27,0.00022417,2]
[311781942,1705387848432,-500.0,0.00022417,2]
[311781943,1705387848441,-500.0,0.00022417,2]
[311781944,1705387848451,-511.07,0.00022417,2]
[311781945,1705387848461,-500.0,0.00022417,2]
[311781946,1705387848470,-291.3,0.00022417,2]
[311781947,1705387848479,-500.0,0.00022417,2]
[311781948,1705387848488,-500.0,0.00022417,2]
[311781949,1705387848498,-500.0,0.00022417,2]
[311781950,1705387848507,-1052.68,0.00022417,2]
[311781951,1705387848517,-500.0,0.00022417,2]
[311781952,1705387848527,-618.94,0.00022417,2]
[311781953,1705387848537,-500.0,0.00022417,2]
[311781954,1705387848546,-500.0,0.00022417,2]
[311781955,1705387848555,-500.0,0.00022417,2]
[311781956,1705387848565,-1392.82,0.00022417,2]
[311781957,1705387848575,-1672.68,0.00022417,2]
[311781958,1705387848586,-559.24,0.00022417,2]
[311781959,1705387848595,-500.0,0.00022417,5]
[311781960,1705387848605,-2935.61,0.00022417,2]
[311781961,1705387848615,-500.0,0.00022417,2]
[311781962,1705387848625,-662.32,0.00022417,2]
[311781963,1705387848634,-893.19,0.00022417,2]
[311781964,1705387848643,-500.0,0.00022417,2]
[311781965,1705387848652,-500.0,0.00022417,2]
[311781966,1705387848661,-500.0,0.00022417,2]
[311781967,1705387848670,-500.0,0.00022417,2]
[311781968,1705387848679,-2097.41,0.00022417,2]
[311781969,1705387848689,-6397.24,0.00022417,2]
[311781970,1705387848698,-500.0,0.00022417,2]
[311781971,1705387848707,-597.31,0.00022417,2]
[311781972,1705387848717,-3813.11,0.00022417,2]
[311781973,1705387848727,-1073.62,0.00022417,2]
[311781974,1705387848736,-5892.94,0.00022417,2]
[311781975,1705387848745,-500.0,0.00022417,2]
[311781976,1705387848754,-1933.6,0.00022417,2]
[311781977,1705387848764,-2509.91,0.00022417,2]
[311781978,1705387848774,-554.12,0.00022417,2]
[311781979,1705387848784,-521.05093664,0.00022417,2]
[311781980,1705387848793,-2147.01,0.00022417,2]
[311781981,1705387848803,-1041.75,0.00022417,2]
[311781982,1705387848812,-202.73,0.00022417,2]
[311781983,1705387848822,-6958.67,0.00022417,2]
[311781984,1705387848831,-500.0,0.00022417,2]
[311781985,1705387848840,-1394.26,0.00022417,2]
[311781986,1705387848850,-897.96,0.00022417,2]
[311781987,1705387848860,-589.90096381,0.00022417,2]
[311781988,1705387848869,-500.0,0.00022417,2]
[311781989,1705387848878,-500.0,0.00022417,2]
[311781990,1705387848887,-2380.18,0.00022417,2]
[311781991,1705387848897,-500.0,0.00022417,2]
[311781992,1705387848907,-513.93,0.00022417,2]
[311781993,1705387848916,-1255.06,0.00022417,2]
[311781994,1705387848925,-594.49,0.00022417,2]
[311781995,1705387848935,-1922.73,0.00022417,2]
[311781996,1705387848944,-805.86,0.00022417,2]
[311781997,1705387848954,-586.7,0.00022417,2]
[311781998,1705387848963,-500.0,0.00022417,2]
[311781999,1705387848972,-4332.39,0.00022417,2]
[311782000,1705387848982,-500.0,0.00022417,2]
[311782001,1705387848992,-5277.26,0.00022417,2]
[311782002,1705387849001,-716.96,0.00022417,2]
[311782003,1705387849011,-2498.08,0.00022417,2]
[311782004,1705387849020,-514.08,0.00022417,2]
[311782005,1705387849029,-703.88,0.00022417,2]
[311782006,1705387849038,-1175.84,0.00022417,2]
[311782007,1705387849048,-565.23,0.00022417,2]
[311782008,1705387849058,-500.0,0.00022417,2]
[311782009,1705387849068,-500.0,0.00022417,2]
[311782010,1705387849078,-500.0,0.00022417,2]
[311782011,1705387849090,-1924.65,0.00022417,2]
[311782012,1705387849101,-500.0,0.00022417,2]
[311782013,1705387849110,-970.8,0.00022417,2]
[311782014,1705387849120,-1228.46,0.00022417,2]
[311782015,1705387849131,-500.0,0.00022417,2]
[311782016,1705387849140,-500.0,0.00022417,2]
[311782017,1705387849149,-953.05,0.00022417,2]
[311782018,1705387849159,-843.95,0.00022417,2]
[311782019,1705387849168,-954.6,0.00022417,2]
[311782020,1705387849178,-553.36,0.00022417,2]
[311782021,1705387849187,-2997.12,0.00022417,2]
[311782022,1705387849196,-500.0,0.00022417,2]
[311782023,1705387849206,-996.2,0.00022417,2]
[311782024,1705387849215,-1445.66,0.00022417,2]
[311782025,1705387849225,-500.0,0.00022417,2]
[311782026,1705387849234,-2783.0,0.00022417,2]
[311782027,1705387849245,-1895.21,0.00022417,2]
[311782028,1705387849256,-909.6,0.00022417,2]
[311782029,1705387849267,-500.0,0.00022417,2]
[311782030,1705387849276,-711.49,0.00022417,2]
[311782031,1705387849285,-500.0,0.00022418,2]
[311782032,1705387849294,-500.0,0.00022418,2]
[311782033,1705387849303,-500.0,0.00022418,2]
[311782034,1705387849312,-500.0,0.00022418,2]
[311782035,1705387849321,-500.0,0.00022418,2]
[311782036,1705387849330,-500.0,0.00022418,2]
[311782037,1705387849339,-500.0,0.00022418,2]
[311782038,1705387849348,-500.0,0.00022418,2]
[311782039,1705387849357,-500.0,0.00022418,2]
[311782040,1705387849366,-500.0,0.00022418,2]
[311782041,1705387849375,-500.0,0.00022418,2]
[311782042,1705387849384,-500.0,0.00022418,2]
[311782043,1705387849393,-510.1,0.00022418,2]
[311782044,1705387849402,-500.0,0.00022418,2]
[311782045,1705387849411,-500.0,0.00022418,2]
[311782046,1705387849420,-500.0,0.00022418,2]
[311782047,1705387849429,-500.0,0.00022418,2]
[311782048,1705387849438,-500.0,0.00022418,2]
[311782049,1705387849447,-500.0,0.00022418,2]
[311782050,1705387849456,-500.0,0.00022418,2]
[311782051,1705387849465,-500.0,0.00022418,2]
[311782052,1705387849474,-500.0,0.00022418,2]
[311782053,1705387849483,-500.0,0.00022418,2]
[311782054,1705387849492,-494.43025649,0.00022418,2]
[311782055,1705387849501,-500.0,0.00022418,2]
[311782056,1705387849510,-518.99872134,0.00022418,2]
[311782057,1705387849519,-536.09,0.00022418,2]
[311782058,1705387849529,-500.0,0.00022418,2]
[311782059,1705387849538,-500.0,0.00022418,2]
[311782060,1705387849547,-500.0,0.00022418,2]
[311782061,1705387849557,-528.05,0.00022418,2]
[311782062,1705387849566,-500.0,0.00022418,2]
[311782063,1705387849575,-288.33993621,0.00022418,2]
[311782064,1705387849584,-769.87,0.00022418,2]
[311782065,1705387849593,-720.78,0.00022418,2]
[311782066,1705387849602,-500.0,0.00022418,2]
[311782067,1705387849611,-500.0,0.00022418,2]
[311782068,1705387849620,-500.0,0.00022418,2]
[311782069,1705387849630,-500.0,0.00022418,2]
[311782070,1705387849639,-500.0,0.00022418,2]
[311782071,1705387849649,-500.0,0.00022418,2]
[311782072,1705387849657,-500.0,0.00022418,2]
[311782073,1705387849668,-500.0,0.00022418,2]
[311782074,1705387849677,-500.0,0.00022418,2]
[311782075,1705387849687,-505.46,0.00022418,2]
[311782076,1705387849697,-500.0,0.00022418,2]
[311782077,1705387849707,-500.0,0.00022418,2]
[311782078,1705387849716,-500.0,0.00022418,2]
[311782079,1705387849726,-500.0,0.00022418,2]
[311782080,1705387849736,-500.0,0.00022418,2]
[311782081,1705387849747,-500.0,0.00022418,2]
[311782082,1705387849756,-500.0,0.00022418,2]
[311782083,1705387849765,-500.0,0.00022418,2]
[311782084,1705387849774,-500.0,0.00022418,2]
[311782085,1705387849784,-500.0,0.00022418,2]
[311782086,1705387849794,-500.0,0.00022418,2]
[311782087,1705387849803,-500.0,0.00022418,2]
[311782088,1705387849812,-500.0,0.00022418,2]
[311782089,1705387849822,-618.78,0.00022418,2]
[311782090,1705387849832,-500.0,0.00022418,2]
[311782091,1705387849841,-500.0,0.00022418,2]
[311782092,1705387849851,-500.0,0.00022418,2]
[311782093,1705387849860,-660.21,0.00022418,2]
[311782094,1705387849869,-500.0,0.00022418,2]
[311782095,1705387849879,-500.0,0.00022418,2]
[311782096,1705387849888,-500.0,0.00022418,2]
[311782097,1705387849899,-500.0,0.00022418,2]
[311782098,1705387849909,-500.0,0.00022418,2]
[311782099,1705387849920,-500.0,0.00022418,2]
[311782100,1705387849930,-500.0,0.00022418,2]
[311782101,1705387849941,-500.0,0.00022418,2]
[311782102,1705387849950,-500.0,0.00022418,2]
[311782103,1705387849960,-500.0,0.00022418,2]
[311782104,1705387849969,-832.45,0.00022418,2]
[311782105,1705387849978,-296.99537998,0.00022418,2]
[311782106,1705387849987,-500.0,0.00022418,2]
[311782107,1705387849997,-500.0,0.00022418,2]
[311782108,1705387850006,-500.0,0.00022418,2]
[311782109,1705387850015,-500.0,0.00022418,2]
[311782110,1705387850024,-500.0,0.00022418,2]
[311782111,1705387850033,-500.0,0.00022418,2]
[311782112,1705387850042,-168.0699112,0.00022418,2]
[311782113,1705387850052,-500.0,0.00022418,2]
[311782114,1705387850061,-500.0,0.00022418,2]
[311782115,1705387850071,-500.0,0.00022418,2]
[311782116,1705387850080,-517.97,0.00022418,2]
[311782117,1705387850093,-500.0,0.00022418,2]
[311782118,1705387850102,-500.0,0.00022418,2]
[311782119,1705387850111,-269.45330703,0.00022418,2]
[311782120,1705387850121,-642.92,0.00022418,2]
[311782121,1705387850129,-677.08,0.00022418,2]
[311782122,1705387850139,-1147.56,0.00022418,2]
[311782123,1705387850148,-579.31,0.00022418,2]
[311782124,1705387850157,-500.0,0.00022418,2]
[311782125,1705387850167,-559.34,0.00022418,2]
[311782126,1705387850176,-500.0,0.00022418,2]
[311782127,1705387850186,-500.0,0.00022418,2]
[311782128,1705387850195,-500.0,0.00022418,2]
[311782129,1705387850204,-583.17316334,0.00022418,2]
[311782130,1705387850214,-500.0,0.00022418,2]
[311782131,1705387850224,-500.0,0.00022418,2]
[311782132,1705387850233,-500.0,0.00022418,2]
[311782133,1705387850242,-732.72,0.00022418,2]
[311782134,1705387850252,-500.0,0.00022418,2]
[311782135,1705387850264,-743.6,0.00022418,2]
[311782136,1705387850274,-617.16,0.00022418,2]
[311782137,1705387850283,-500.0,0.00022418,2]
[311782138,1705387850292,-500.0,0.00022418,2]
[311782139,1705387850301,-500.0,0.00022418,2]
[311782140,1705387850311,-500.0,0.00022418,2]
[311782141,1705387850321,-500.0,0.00022418,2]
[311782142,1705387850330,-500.0,0.00022418,2]
[311782143,1705387850339,-500.0,0.00022418,2]
[311782144,1705387850348,-500.0,0.00022418,2]
[311782145,1705387850358,-500.0,0.00022418,2]
[311782146,1705387850368,-500.0,0.00022418,2]
[311782147,1705387850377,-774.9,0.00022418,2]
[311782148,1705387850386,-500.0,0.00022418,2]
[311782149,1705387850397,-502.19,0.00022418,2]
[311782150,1705387850406,-500.0,0.00022418,2]
[311782151,1705387850416,-500.0,0.00022418,2]
[311782152,1705387850425,-500.0,0.00022418,2]
[311782153,1705387850435,-500.0,0.00022418,2]